[Event "CCT Chessable Masters Playoffs 2025"]
[Site "Online"]
[Date "2025.02.18"]
[Round "1"]
[White "Sevian, Samuel"]
[Black "Caruana, Fabiano"]
[Result "1/2-1/2"]
[Annotator "TA"]
[ECO "C55"]
[WhiteElo "2692"]
[BlackElo "2803"]
[PlyCount "183"]
[EventDate "2025.02.13"]
[EventType "k.o."]
[EventCountry "NET"]
[SourceTitle "playchess.com"]
[Source "ChessBase"]
[SourceQuality "1"]
[TimeControl "600"]

{[%evp 14,183,20,16,35,21,28,29,25,34,28,29,37,37,45,27,57,44,39,48,62,56,56,55,55,43,36,45,65,46,75,81,75,63,58,96,79,83,68,56,89,44,43,50,66,59,62,60,73,52,51,0,53,8,30,7,55,60,66,53,56,43,48,0,53,40,44,58,47,49,73,16,16,18,13,0,15,0,0,0,0,0,0,0,1,0,11,0,0,0,2,0,0,-14,2,0,0,0,0,0,0,0,26,-45,-36,-29,-29,-37,0,0,0,0,0,0,0,0,0,-8,0,0,0,0,20,0,0,0,0,0,0,0,0,0,0,0,0,0,0,0,29970,29972,29967,29973,29969,29971,29971,29971,29971,0,0,0,0,0,29974,29975,29974,29976,29973,29976,4610,0,0,0,0,0,0,0,0,0,0,0,0,0]} 1. e4 {[%emt 0:00:00]} e5 {[%emt 0:00:01]} 2. Nf3 {[%emt 0:00:01]} Nc6 {[%emt 0:00:00]} 3. Bc4 {[%emt 0:00:01]} Nf6 {[%emt 0:00:01]} 4. d3 {[%emt 0:00:00]} Be7 {[%emt 0:00:01]} 5. O-O {[%emt 0:00:01]} O-O {[%emt 0:00:02]} 6. Nc3 {[%emt 0:00:01]} d6 {[%emt 0:00:01]} 7. a4 {[%emt 0:00:01] 7.a3 is the recent fashion.} h6 {[%emt 0:00:04]} 8. h3 {[%emt 0:00:04]} Re8 {[%emt 0:00:02] C55: Two Knights: 4 d3, 4 d4 exd4 5 e5 and Max Lange Attack.} 9. Re1 {[%emt 0:00:09]} Bf8 {[%emt 0:00:01]} 10. a5 {[%emt 0:01:02]} a6 {[%emt 0:00:11] White has an edge.} 11. Bd2 {[%emt 0:00:01]} Be6 {[%emt 0:00:06]} 12. Bxe6 {[%emt 0:00:02]} fxe6 $146 {[%emt 0:00:08]} (12... Rxe6 13. Nd5 Nb8 14. c4 Nbd7 15. b4 Nh7 16. Be3 g6 17. Qc2 c6 18. Nc3 Re8 {1-0 Dominguez Perez,L (2748)-Caruana,F (2793) Saint Louis Blitz 2024 (9)}) 13. Ne2 {[%emt 0:00:03]} d5 {[%emt 0:00:04]} 14. Ng3 {[%emt 0:00:01]} Qd7 {[%emt 0:00:06]} 15. c3 {[%emt 0:00:12]} Qf7 {[%emt 0:00:15]} 16. b4 {[%emt 0:00:10][%cal Bb2b4,Bb4b5][%mdl 32]} Rad8 {[%emt 0:00:03]} 17. Qb3 {[%emt 0:00:08]} Bd6 {[%emt 0:00:23]} 18. b5 {[%emt 0:00:10]} Nb8 {[%emt 0:00:15][%cal Bc6b8,Bb8d7,Bd7f6][%mdl 32]} 19. d4 {[%emt 0:00:36]} Nbd7 {[%emt 0:00:17]} 20. bxa6 {[%emt 0:00:39]} bxa6 {[%emt 0:00:03]} 21. Qb7 {[%emt 0:00:04]} dxe4 {[%emt 0:01:13]} 22. Nxe4 {[%emt 0:00:02]} Nxe4 {[%emt 0:00:01]} 23. Rxe4 {[%emt 0:00:18]} exd4 {[%emt 0:00:02]} 24. cxd4 {[%emt 0:00:06]} (24. Qxa6 Nc5 25. Qc6 Nxe4 26. Qxe4 d3 $19) 24... Nf6 {[%emt 0:00:18]} 25. Ree1 {[%emt 0:00:12]} Ra8 {[%emt 0:00:03]} 26. Rac1 {[%emt 0:00:21] White has more active pieces.} Nd5 {[%emt 0:00:12]} 27. Re4 {[%emt 0:00:08]} Qd7 {[%emt 0:00:08]} 28. Qb3 {[%emt 0:00:11]} Qb5 {[%emt 0:00:06]} 29. Qc2 {[%emt 0:00:13][%cal Od2h6]} Nf6 {[%emt 0:00:12]} 30. Ree1 {[%emt 0:00:05]} Qf5 {[%emt 0:00:22]} 31. Qc6 {[%emt 0:00:02]} Qd5 {[%emt 0:00:07]} 32. Qc2 {[%emt 0:00:37][%cal Od2h6]} Qf5 $1 {[%emt 0:00:02]} 33. Qb3 {[%emt 0:00:47]} Qd5 {[%emt 0:00:12]} 34. Qd3 {[%emt 0:00:05]} Qf5 {[%emt 0:00:03]} (34... e5 $11 35. Qc4 (35. Qg6 exd4 36. Bxh6 Qf7 $16) 35... exd4 36. Nxd4 Rxe1+ 37. Bxe1 Qxc4 38. Rxc4 Rb8) 35. Qc4 $14 {[%emt 0:00:07]} Qd5 {[%emt 0:00:02]} 36. Qe2 {[%emt 0:00:00]} Qb5 {[%emt 0:00:06]} 37. Qd1 {[%emt 0:00:09]} Qd5 {[%emt 0:00:09]} 38. Qe2 {[%emt 0:00:16]} Qb5 {[%emt 0:00:02]} 39. Ne5 {[%emt 0:00:02]} Qxe2 {[%emt 0:00:07]} 40. Rxe2 {[%emt 0:00:01]} Nd5 {[%emt 0:00:21]} 41. Nc6 {[%emt 0:00:06]} Kf7 {[%emt 0:00:04]} 42. Rce1 {[%emt 0:00:01]} (42. Rc4 $16) 42... Ne7 $11 {[%emt 0:00:06]} 43. Nxe7 {[%emt 0:00:25]} Rxe7 {[%emt 0:00:00]} 44. Rb1 {[%emt 0:00:00]} Rd7 {[%emt 0:00:08]} 45. Be3 {[%emt 0:00:04]} Rdd8 {[%emt 0:00:14]} 46. Reb2 {[%emt 0:00:01]} Ke7 {[%emt 0:00:03]} 47. g3 {[%emt 0:00:00]} Kd7 {[%emt 0:00:02]} 48. Kg2 {[%emt 0:00:00]} Kc6 {[%emt 0:00:02]} 49. Kf3 {[%emt 0:00:01]} Kd5 {[%emt 0:00:02]} 50. h4 {[%emt 0:00:04]} h5 {[%emt 0:00:07]} 51. Ke2 {[%emt 0:00:07]} g6 {[%emt 0:00:03]} 52. Rb7 {[%emt 0:00:01]} Kc6 {[%emt 0:00:03]} 53. Kd3 {[%emt 0:00:03]} Kd5 {[%emt 0:00:01]} 54. Bf4 {[%emt 0:00:15]} Bxf4 {[%emt 0:00:24]} 55. gxf4 {[%emt 0:00:01][%mdl 4096] Endgame KRR-KRR} Kc6 {[%emt 0:00:01]} 56. R7b4 {[%emt 0:00:11]} Rd5 {[%emt 0:00:01]} 57. Rc1+ {[%emt 0:00:01]} Kd6 {[%emt 0:00:03]} 58. Rb7 {[%emt 0:00:01]} (58. Rbc4 $11 Rxa5 59. Rxc7) 58... Rc8 $15 {[%emt 0:00:01]} 59. Rg1 {[%emt 0:00:10]} Rf8 {[%emt 0:00:08]} 60. Ke3 {[%emt 0:00:13]} Rf6 {[%emt 0:00:13]} 61. Rg5 {[%emt 0:00:04]} Rdf5 {[%emt 0:00:16]} 62. Ra7 {[%emt 0:00:04]} Rxf4 {[%emt 0:00:01]} 63. Rxa6+ {[%emt 0:00:01]} Kd7 {[%emt 0:00:00]} 64. d5 {[%emt 0:00:21]} Rf3+ {[%emt 0:00:08]} 65. Ke4 {[%emt 0:00:10]} R6f4+ {[%emt 0:00:08]} (65... Rxf2 {simplifies} 66. dxe6+ Rxe6+ 67. Rxe6 Re2+) 66. Ke5 {[%emt 0:00:01]} Rf5+ {[%emt 0:00:01]} 67. Kd4 {[%emt 0:00:00]} Rxg5 {[%emt 0:00:38]} 68. dxe6+ {[%emt 0:00:03]} Ke7 {[%emt 0:00:02]} 69. hxg5 {[%emt 0:00:01]} Rxf2 $11 {[%emt 0:00:01] KR-KR} 70. Rc6 {[%emt 0:00:00]} Rf4+ {[%emt 0:00:06]} 71. Kc5 {[%emt 0:00:02]} h4 {[%emt 0:00:11]} 72. a6 {[%emt 0:00:02]} Ra4 {[%emt 0:00:04]} 73. Kb5 {[%emt 0:00:02]} Ra1 {[%emt 0:00:01]} 74. Rxc7+ {[%emt 0:00:01]} Kxe6 {[%emt 0:00:01]} 75. Rh7 {[%emt 0:00:00]} Kf5 $2 {[%emt 0:00:02][%mdl 8192]} (75... Rb1+ $11 76. Kc6 Rc1+ 77. Kb6 Rb1+ 78. Ka7 Rh1) 76. Rxh4 {[%emt 0:00:01]} Kxg5 {[%emt 0:00:02] [#]} 77. Ra4 $1 {[%emt 0:00:01]} Rb1+ {[%emt 0:00:01]} 78. Kc6 {[%emt 0:00:01]} Rc1+ {[%emt 0:00:01]} 79. Kd7 {[%emt 0:00:00]} Rd1+ {[%emt 0:00:01]} 80. Ke6 $2 {[%emt 0:00:01]} (80. Ke7 {mates} Re1+ 81. Kf7 Rf1+ 82. Kg7 Rc1 83. Ra5+ Kf4 84. a7 (84. Kxg6 Rc6+ 85. Kh5 Rc8 $18) 84... Rc8 85. Kxg6 (85. a8=R Rc7+ 86. Kh6 Rf7 $18) (85. a8=Q Rxa8 86. Rxa8 g5 $18)) 80... Rd8 $1 {[%emt 0:00:05]} 81. a7 {[%emt 0:00:00]} Ra8 {[%emt 0:00:00]} 82. Ke5 {[%emt 0:00:01]} Re8+ $2 {[%emt 0:00:03][%mdl 8192] [#]} (82... Kh5 $11) 83. Kd6 {[%emt 0:00:00]} Ra8 {[%emt 0:00:00]} 84. Kc6 {[%emt 0:00:00]} Kf5 {[%emt 0:00:03]} 85. Kb7 {[%emt 0:00:01]} Re8 {[%emt 0:00:01]} 86. Rc4 $2 {[%emt 0:00:02]} ({Less strong is} 86. a8=B Re6 $14) (86. a8=Q $18 Rxa8 87. Rxa8 (87. Kxa8 g5 $11)) 86... g5 {[%emt 0:00:04] The position is equal.} 87. Rc5+ {[%emt 0:00:00]} Kf4 {[%emt 0:00:01]} 88. Rc8 {[%emt 0:00:01]} Re7+ $1 {[%emt 0:00:01]} 89. Rc7 {[%emt 0:00:00]} Re8 {[%emt 0:00:00]} 90. Rc8 {[%emt 0:00:00]} Re7+ $1 {[%emt 0:00:01]} 91. Rc7 {[%emt 0:00:01]} Re8 {[%emt 0:00:01]} 92. Rc8 {[%emt 0:00:00] Weighted Error Value: White=0.12 (very precise) /Black=0.07 (flawless)   Loses game:     	---       	Black=2      Mistake:       	White=2     	Black=1      Inaccurate:     	White=2     	Black=5      OK:         	White=23    	Black=37     Best:        	White=4     	Black=7      Strong:       	---       	Black=3} 1/2-1/2

[Event "CCT Chessable Masters Playoffs 2025"]
[Site "Online"]
[Date "2025.02.18"]
[Round "1"]
[White "Artemiev, Vladislav"]
[Black "Erigaisi Arjun"]
[Result "1/2-1/2"]
[Annotator "TA"]
[ECO "D30"]
[WhiteElo "2691"]
[BlackElo "2801"]
[PlyCount "91"]
[EventDate "2025.02.13"]
[EventType "k.o."]
[EventCountry "NET"]
[SourceTitle "playchess.com"]
[Source "ChessBase"]
[SourceQuality "1"]
[TimeControl "600"]

{[%evp 9,91,15,19,11,24,22,30,0,1,6,6,8,11,7,11,0,0,10,20,15,18,18,21,18,29,28,44,25,28,20,16,20,40,0,15,30,25,25,22,0,14,0,54,0,0,0,0,0,0,0,0,0,0,0,0,0,0,0,0,0,0,0,0,0,0,0,0,0,0,0,0,0,0,0,0,0,0,0,0,0,0,0,0,0]} 1. d4 {[%emt 0:00:06]} Nf6 {[%emt 0:00:02]} 2. Nf3 {[%emt 0:00:07]} d5 {[%emt 0:00:02]} 3. c4 {[%emt 0:00:00]} e6 {[%emt 0:00:01]} 4. e3 {[%emt 0:00:06]} a6 {[%emt 0:00:04]} 5. b3 {[%emt 0:00:02]} b6 {[%emt 0:00:01]} 6. Bd3 {[%emt 0:00:11] D30: Queen's Gambit Declined: Systems without Nc3.} Bb7 {[%emt 0:00:01]} 7. O-O {[%emt 0:00:02]} Nbd7 $1 {[%emt 0:00:01] 7...Nbd7 is better than 7...Bd6.} 8. cxd5 {[%emt 0:00:14] White has an edge.} exd5 {[%emt 0:00:00]} 9. Ba3 {[%emt 0:00:01]} Bxa3 {[%emt 0:00:05]} 10. Nxa3 {[%emt 0:00:01]} Qe7 {[%emt 0:00:00]} 11. Nb1 {[%emt 0:00:04] Not much happening anymore} Ne4 $146 {[%emt 0:00:16]} (11... O-O 12. Nc3 g6 13. Rc1 c5 14. Qe2 Rfc8 15. Rc2 Nf8 16. Rfc1 Ne6 17. Nb1 cxd4 18. exd4 Rxc2 19. Rxc2 Qd6 20. Nbd2 a5 21. Qe5 Qxe5 22. Nxe5 Rc8 23. Rxc8+ {½-½ Markowski,T (2548)-Miton,K (2579) POL-chT Ekstraliga 2021 (6.3)}) 12. Qe2 {[%emt 0:00:08]} O-O {[%emt 0:00:20]} 13. Rc1 {[%emt 0:00:01]} Qd6 {[%emt 0:00:07]} 14. Nc3 {[%emt 0:00:15]} Rfc8 {[%emt 0:00:06]} 15. Rc2 {[%emt 0:00:24]} g6 {[%emt 0:00:12]} 16. Rac1 {[%emt 0:00:42]} Kg7 {[%emt 0:00:02]} 17. Qd1 {[%emt 0:00:18]} Re8 {[%emt 0:00:35]} 18. Bf1 {[%emt 0:00:38]} (18. Nxe4 dxe4 19. Rxc7 Nc5 20. R1xc5 bxc5 21. Rxb7 Qc6 $17 (21... exd3 22. Ng5 $17)) 18... Rac8 {[%emt 0:00:15]} 19. Nxe4 {[%emt 0:00:07]} dxe4 {[%emt 0:00:00]} 20. Nd2 {[%emt 0:00:01]} h5 {[%emt 0:00:52]} 21. h4 {[%emt 0:00:34]} b5 {[%emt 0:00:21]} 22. a4 {[%emt 0:00:08]} c6 {[%emt 0:00:00]} 23. axb5 {[%emt 0:00:38]} axb5 {[%emt 0:00:00]} 24. d5 {[%emt 0:00:30]} Qxd5 {[%emt 0:00:17]} ({But not} 24... cxd5 25. Bxb5 Rxc2 26. Rxc2) 25. Nxe4 {[%emt 0:00:02]} Rxe4 {[%emt 0:00:12]} ({Black should try} 25... Qxe4 $11 26. Qxd7 Rb8) 26. Qxd5 {[%emt 0:00:02]} (26. Rd2 $14 Qe5 27. Rxd7) 26... cxd5 $11 {[%emt 0:00:00] The position is equal.} 27. Rxc8 {[%emt 0:00:00]} Bxc8 {[%emt 0:00:00]} 28. Rxc8 {[%emt 0:00:01][%mdl 4096] Endgame KRB-KRN} Rb4 {[%emt 0:00:10][%cal Be4b4,Bb4b3,Bb3a3,Ba3a1][%mdl 32]} 29. Rd8 {[%emt 0:00:14]} Nf6 {[%emt 0:00:06]} 30. Rb8 {[%emt 0:00:01]} Rxb3 {[%emt 0:00:04]} 31. Rxb5 {[%emt 0:00:00]} Ra3 {[%emt 0:00:06]} 32. Rb2 {[%emt 0:00:12]} Ne4 {[%emt 0:00:08]} 33. g3 {[%emt 0:00:02]} Ra1 {[%emt 0:00:05]} 34. Kg2 {[%emt 0:00:03]} Kf6 {[%emt 0:00:10]} 35. Be2 {[%emt 0:00:10]} Ke5 {[%emt 0:00:02]} 36. Bf3 {[%emt 0:00:32]} Ra7 {[%emt 0:00:10]} 37. Rb5 {[%emt 0:00:11]} Ke6 {[%emt 0:00:02]} 38. Rb6+ {[%emt 0:00:02]} Kf5 {[%emt 0:00:21]} 39. Rb5 {[%emt 0:00:15]} Ke6 {[%emt 0:00:01]} 40. Rb4 {[%emt 0:00:18]} Ke5 {[%emt 0:00:04]} 41. Bxe4 {[%emt 0:00:05]} dxe4 {[%emt 0:00:00]} 42. Rb5+ {[%emt 0:00:01]} Ke6 {[%emt 0:00:01]} 43. Rb6+ {[%emt 0:00:01]} Ke5 {[%emt 0:00:01]} 44. Rb5+ {[%emt 0:00:01]} Ke6 {[%emt 0:00:01]} 45. Rb4 {[%emt 0:00:00]} Ke5 {[%emt 0:00:01]} 46. Rb5+ {[%emt 0:00:01] Weighted Error Value: White=0.07 (flawless) /Black=0.06 (flawless)   Mistake:       	White=1     	Black=1      Inaccurate:     	White=2     	---        OK:         	White=18    	Black=15     Best:        	White=1     	---} 1/2-1/2

[Event "CCT Chessable Masters Playoffs 2025"]
[Site "Online"]
[Date "2025.02.18"]
[Round "1"]
[White "Grischuk, Alexander"]
[Black "Nakamura, Hikaru"]
[Result "0-1"]
[Annotator "TA"]
[ECO "C60"]
[WhiteElo "2687"]
[BlackElo "2802"]
[PlyCount "118"]
[EventDate "2025.02.13"]
[EventType "k.o."]
[EventCountry "NET"]
[SourceTitle "playchess.com"]
[Source "ChessBase"]
[SourceQuality "1"]
[TimeControl "600"]

{[%evp 9,118,13,12,0,-6,-17,39,-6,-8,-17,-14,-23,-28,-20,-24,-28,-22,-21,-16,-20,-24,-29,0,-13,-2,-51,-33,-36,-33,-35,-39,-31,-28,-14,-25,-35,-32,-24,0,-104,0,-37,-31,-37,-12,-12,-12,-12,-12,-21,-20,-27,-11,-5,0,-27,-26,-20,-20,-22,-17,-37,0,-22,-16,-20,-10,-13,0,-16,0,0,0,0,0,0,0,0,0,-23,-22,-27,-4,-8,0,0,0,0,0,-25,-31,-66,-67,-74,-74,-74,-74,-132,-138,-164,-164,-189,-149,-194,-186,-245,-165,-285,-310,-1660,-1636]} 1. e4 {[%emt 0:00:00]} e5 {[%emt 0:00:01]} 2. Nf3 {[%emt 0:00:02]} Nc6 {[%emt 0:00:01]} 3. Bb5 {[%emt 0:00:00]} Nge7 {[%emt 0:00:01]} 4. Nc3 {[%emt 0:00:56]} Ng6 {[%emt 0:00:03]} 5. d3 {[%emt 0:00:47]} a6 {[%emt 0:00:04]} 6. Bc4 {[%emt 0:00:08] [#] C60: Ruy Lopez: Unusual Black 3rd moves and 3...g6.} Na5 {[%emt 0:00:10]} 7. h4 {[%emt 0:01:07]} Nxc4 {[%emt 0:00:16]} (7... h5 $1 $11) 8. dxc4 {[%emt 0:00:00] h5 would now be deadly. White is slightly better.} (8. h5 $5 Nxb2 9. Bxb2 $11) 8... h5 {[%emt 0:00:06]} 9. Bg5 {[%emt 0:00:46]} f6 {[%emt 0:00:07]} 10. Be3 {[%emt 0:00:01]} Bb4 {[%emt 0:00:04]} 11. Qd3 $146 {[%emt 0:00:01]} (11. Qd2 d6 12. a3 Bxc3 13. Qxc3 Be6 14. O-O-O b6 15. Ne1 Qd7 16. c5 bxc5 17. Bxc5 {0-1 Filipovic,B (2410)-Pandurevic,M (2269) Bosnjaci op 10th 2004 (9)}) 11... d6 {[%emt 0:00:45]} 12. O-O-O {[%emt 0:00:02]} Bxc3 {[%emt 0:00:01]} 13. Qxc3 {[%emt 0:00:00]} b6 {[%emt 0:00:01]} 14. Nd2 {[%emt 0:00:14]} Be6 {[%emt 0:00:12]} 15. b3 {[%emt 0:00:41]} Qe7 {[%emt 0:00:38]} 16. Kb2 {[%emt 0:00:05]} b5 {[%emt 0:00:41]} 17. c5 {[%emt 0:00:14]} (17. Ra1 $11) 17... d5 {[%emt 0:00:06]} 18. exd5 {[%emt 0:00:05]} Bxd5 {[%emt 0:00:00][%cal Oe7f7]} 19. f3 {[%emt 0:00:02]} Qe6 {[%emt 0:00:42]} 20. Qa5 {[%emt 0:00:12]} Qc6 {[%emt 0:00:12]} 21. Nb1 {[%emt 0:00:12]} Ne7 {[%emt 0:00:05]} 22. Nc3 {[%emt 0:00:26]} O-O {[%emt 0:00:01]} 23. a3 {[%emt 0:00:36]} Be6 {[%emt 0:00:08]} 24. Rd2 {[%emt 0:00:05] [#]} (24. Na2 $11 {remains equal.}) 24... Rfd8 {[%emt 0:00:11]} (24... Qb7 $1 $17 {And now ...Nc6 would win.} 25. Ne4 Nc6) 25. Rhd1 {[%emt 0:00:03]} Rxd2 {[%emt 0:00:01]} 26. Rxd2 {[%emt 0:00:00]} Rb8 {[%emt 0:00:01]} 27. Na2 {[%emt 0:00:09]} Nd5 {[%emt 0:00:07]} 28. Nb4 {[%emt 0:00:01]} Nxb4 {[%emt 0:00:01]} 29. Qxb4 {[%emt 0:00:08]} Ra8 {[%emt 0:00:05]} 30. Qa5 {[%emt 0:00:03]} Bd5 {[%emt 0:00:09]} 31. Rd1 {[%emt 0:00:04]} Be6 {[%emt 0:00:05]} 32. Rd2 {[%emt 0:00:01]} Kh7 {[%emt 0:00:02]} 33. Rd1 {[%emt 0:00:05]} Bf5 {[%emt 0:00:01]} 34. Rd2 {[%emt 0:00:03]} Re8 {[%emt 0:00:05]} 35. Qb4 {[%emt 0:00:03]} Ra8 {[%emt 0:00:01]} 36. Qa5 {[%emt 0:00:01]} Rc8 {[%emt 0:00:14]} 37. Qb4 {[%emt 0:00:01]} Qe6 {[%emt 0:00:01]} 38. Qa5 {[%emt 0:00:05]} Bg6 {[%emt 0:00:11]} 39. Qb4 {[%emt 0:00:04]} e4 {[%emt 0:00:04]} 40. f4 {[%emt 0:00:05]} Qg4 {[%emt 0:01:04][%cal Oc7c6]} 41. c6 {[%emt 0:00:01]} Be8 {[%emt 0:00:01]} 42. Qc5 {[%emt 0:00:28]} Qe6 {[%emt 0:00:11]} 43. Rd5 {[%emt 0:00:05]} Kg8 {[%emt 0:00:03]} 44. Qd4 {[%emt 0:00:11]} Qxc6 {[%emt 0:00:19]} 45. Rc5 {[%emt 0:00:06]} Qe6 {[%emt 0:00:05]} 46. f5 {[%emt 0:00:00]} Qe7 {[%emt 0:00:15]} 47. Qd5+ {[%emt 0:00:08]} Bf7 {[%emt 0:00:14]} 48. Qb7 {[%emt 0:00:01][%csl LRa6,LRc8]} Qd7 {[%emt 0:00:01]} 49. Qxa6 {[%emt 0:00:01]} c6 {[%emt 0:00:00]} 50. Qb6 {[%emt 0:00:07]} Bd5 {[%emt 0:00:03]} 51. Rc3 {[%emt 0:00:04]} Qxf5 {[%emt 0:00:03]} 52. Bd4 {[%emt 0:00:01]} Qf4 {[%emt 0:00:06]} 53. Qa7 {[%emt 0:00:10]} (53. Qb7 $142 Rd8 54. Qa7) 53... Qxh4 $17 {[%emt 0:00:14]} 54. Bf2 {[%emt 0:00:06]} Qf4 {[%emt 0:00:04]} 55. Rg3 {[%emt 0:00:02][%csl Gg3][%cal Ra7g7]} Qc7 {[%emt 0:00:01]} 56. Qc5 {[%emt 0:00:04]} Qe5+ {[%emt 0:00:02]} 57. Kb1 {[%emt 0:00:02]} (57. Qd4) 57... Rc7 {[%emt 0:00:08]} 58. Qb6 {[%emt 0:00:02]} (58. Rh3 {might work better.} Qe8 59. Qe3) 58... Rd7 $19 {[%emt 0:00:02]} 59. Qa6 $2 {[%emt 0:00:16]} (59. Qc5) 59... Be6 {[%emt 0:00:06] Weighted Error Value: White=0.29 (precise) /Black=0.11 (very precise)   Mistake:       	White=6     	Black=2      Inaccurate:     	White=4     	Black=2      OK:         	White=19    	Black=30     Best:        	White=1     	Black=3} 0-1

[Event "CCT Chessable Masters Playoffs 2025"]
[Site "Online"]
[Date "2025.02.18"]
[Round "2"]
[White "Carlsen, Magnus"]
[Black "Yu, Yangyi"]
[Result "1/2-1/2"]
[Annotator "TA"]
[ECO "B90"]
[WhiteElo "2833"]
[BlackElo "2715"]
[PlyCount "117"]
[EventDate "2025.02.13"]
[EventType "k.o."]
[EventCountry "NET"]
[SourceTitle "playchess.com"]
[Source "ChessBase"]
[SourceQuality "1"]
[TimeControl "600"]

{[%evp 11,117,0,13,6,0,0,24,15,48,10,29,0,0,0,31,48,39,29,28,32,33,-41,-37,-45,-52,-46,-43,-49,-44,-72,-60,-76,-73,-79,-81,-62,-61,-70,-61,-63,-64,-62,-37,-33,-36,-35,-29,-37,-44,-47,-8,-8,-13,-8,-8,-22,-10,-23,-22,-31,-31,-25,-25,-25,-21,-28,-28,-74,-31,-35,-46,-85,-83,-77,-80,-88,-80,-89,-20,-20,-20,-20,-20,-20,-20,-20,-20,-20,-20,-39,-39,-39,0,-20,-20,-39,-39,-40,-39,-77,-15,-20,0,-68,-20,-68,0,-49]} 1. e4 {[%emt 0:00:00]} c5 {[%emt 0:00:03]} 2. Nf3 {[%emt 0:00:02]} d6 {[%emt 0:00:00]} 3. d4 {[%emt 0:00:02]} cxd4 {[%emt 0:00:01]} 4. Nxd4 {[%emt 0:00:01]} Nf6 {[%emt 0:00:01]} 5. Nc3 {[%emt 0:00:00]} a6 {[%emt 0:00:17]} 6. a4 {[%emt 0:00:04]} Nc6 {[%emt 0:00:08]} 7. Nxc6 {[%emt 0:00:16] B90: Sicilian Najdorf: Unusual White 6th moves, 6 Be3 Ng4 and 6 Be3 e5.} bxc6 {[%emt 0:00:01]} 8. a5 {[%emt 0:00:00]} g6 {[%emt 0:00:27]} 9. Be3 {[%emt 0:00:23][%cal Oe4e5] White has an edge.} Bg7 {[%emt 0:00:05]} 10. Bb6 $146 {[%emt 0:00:01]} (10. e5 $5 Nd7 11. exd6 $14) (10. e5 Ng4 11. Bb6 Qd7 12. exd6 exd6 13. Qe2+ Qe6 14. O-O-O d5 15. Qxe6+ Bxe6 16. f3 {½-½ Onyshchuk,V (2633)-Anisimov,P (2527) Titled Tuesday intern op 5th May blitz 2020 (8)}) 10... Qd7 {[%emt 0:00:01]} 11. Bd3 {[%emt 0:00:06]} O-O {[%emt 0:00:10]} 12. O-O {[%emt 0:00:03]} Qb7 {[%emt 0:00:11]} 13. Na4 {[%emt 0:00:07]} Be6 {[%emt 0:00:16]} 14. Re1 {[%emt 0:00:41]} Nd7 {[%emt 0:00:02]} 15. c3 {[%emt 0:00:03]} c5 {[%emt 0:00:16]} 16. Qe2 {[%emt 0:00:23]} (16. f4 $14) 16... Bb3 $15 {[%emt 0:00:06]} 17. Reb1 {[%emt 0:00:41]} Bxa4 {[%emt 0:00:30]} 18. Rxa4 {[%emt 0:00:02]} Nxb6 {[%emt 0:00:00]} 19. axb6 {[%emt 0:00:01]} Qxb6 {[%emt 0:00:00]} 20. h4 {[%emt 0:00:07][%cal Ob1a1]} a5 {[%emt 0:00:10]} 21. h5 {[%emt 0:00:02]} Rab8 {[%emt 0:00:23]} 22. g3 {[%emt 0:00:09]} e6 {[%emt 0:00:36]} 23. Kg2 {[%emt 0:00:04]} d5 {[%emt 0:00:16]} 24. exd5 {[%emt 0:00:02]} exd5 {[%emt 0:00:00]} 25. Qf3 {[%emt 0:00:30]} c4 {[%emt 0:00:33]} 26. Bc2 {[%emt 0:00:02]} Rfe8 {[%emt 0:00:17]} 27. b3 {[%emt 0:00:11]} Qc5 {[%emt 0:00:17]} 28. bxc4 {[%emt 0:00:07]} dxc4 {[%emt 0:00:02]} 29. Rxb8 {[%emt 0:00:05]} Rxb8 {[%emt 0:00:01]} 30. Qg4 {[%emt 0:00:50][%cal Rh5g6] White is weak on the dark squares} Rb2 {[%emt 0:01:09]} (30... Qc6+ {simplifies} 31. Qf3 Qxf3+ 32. Kxf3 Rb2) 31. Rxc4 {[%emt 0:00:26]} Qxh5 {[%emt 0:01:31]} 32. Qxh5 {[%emt 0:00:02]} gxh5 $11 {[%emt 0:00:01][%mdl 4096] Endgame KRB-KRB. Black is a pawn up.} 33. Rc8+ {[%emt 0:00:11]} Bf8 {[%emt 0:00:01]} 34. Bxh7+ {[%emt 0:00:00]} Kg7 {[%emt 0:00:06]} 35. Be4 {[%emt 0:00:00]} a4 {[%emt 0:00:09]} 36. Bd5 {[%emt 0:00:02]} Rd2 {[%emt 0:00:08]} 37. Bc4 {[%emt 0:00:01]} Rd7 {[%emt 0:00:09]} 38. Ra8 {[%emt 0:00:02]} a3 {[%emt 0:00:02]} 39. Kf3 {[%emt 0:00:05]} (39. Kf1 $11) 39... Rc7 {[%emt 0:00:01]} 40. Ra4 {[%emt 0:00:02]} Bc5 {[%emt 0:00:07]} 41. Bd5 {[%emt 0:00:15]} Rd7 {[%emt 0:00:04]} 42. Bc4 {[%emt 0:00:48]} Rd2 {[%emt 0:00:02][%cal Of7f5]} 43. Ra5 {[%emt 0:00:02]} Rxf2+ {[%emt 0:00:07]} (43... Bxf2 $6 44. Rxa3 h4 45. gxh4 $15) 44. Ke4 {[%emt 0:00:01]} Bd6 {[%emt 0:00:10]} (44... f5+ $17 45. Ke5 Bf8) 45. Rxh5 {[%emt 0:00:01]} Rc2 {[%emt 0:00:10]} (45... Bxg3 $2 {loses.} 46. Rg5+ Kh6 47. Rxg3 $18) 46. Rg5+ {[%emt 0:00:12]} Kf8 {[%emt 0:00:02]} 47. Rf5 {[%emt 0:00:02]} Rxc3 {[%emt 0:00:01]} 48. Rxf7+ {[%emt 0:00:05]} Ke8 {[%emt 0:00:01]} 49. Bd5 {[%emt 0:00:12]} Rxg3 {[%emt 0:00:04]} 50. Ra7 {[%emt 0:00:02]} Bc5 {[%emt 0:00:03]} 51. Ra5 {[%emt 0:00:03]} Bd6 {[%emt 0:00:02]} 52. Ra7 {[%emt 0:00:08]} Kd8 {[%emt 0:00:02]} 53. Be6 {[%emt 0:00:03]} Bc5 {[%emt 0:00:01]} 54. Rd7+ {[%emt 0:00:03]} Ke8 {[%emt 0:00:01]} 55. Rc7 {[%emt 0:00:02] [#]} Bd6 {[%emt 0:00:06]} (55... Re3+ $1 $17 56. Kf5 Bb4) 56. Ra7 {[%emt 0:00:01]} Bc5 {[%emt 0:00:02]} (56... Rg5 $11 57. Kd3 Bc5) 57. Rc7 $15 {[%emt 0:00:03]} Bb6 {[%emt 0:00:03]} (57... Re3+ $1 $15 {might be stronger.} 58. Kf5 Bd6) 58. Rb7 {[%emt 0:00:03]} (58. Rc6 $11) 58... Bc5 {[%emt 0:00:03]} 59. Rc7 {[%emt 0:00:01] Weighted Error Value: White=0.10 (very precise) /Black=0.14 (very precise)   Mistake:       	White=3     	Black=4      Inaccurate:     	White=5     	Black=4      OK:         	White=19    	Black=24     Best:        	White=2     	Black=3} 1/2-1/2